bitfinex-derivatives/quotes_BNBF0:USTF0_20230831
["timestamp","ask_amount","ask_price","bid_price","bid_amount"]
[1693516460955,0.07461461,215.84,215.5,0.18384363]
[1693516462554,0.07461461,215.84,215.51,0.18384363]
[1693516462754,0.07461461,215.84,215.49,0.18384363]
[1693516462956,0.07461461,215.84,215.5,0.18384363]
[1693516463255,0.07461461,215.84,215.51,0.18384363]
[1693516463454,0.07461461,215.84,215.49,0.18384363]
[1693516463655,0.07461461,215.84,215.5,0.18384363]
[1693516464050,0.07461461,215.84,215.51,0.18384363]
[1693516464355,0.07461461,215.84,215.52,0.18384363]
[1693516464554,0.07461461,215.84,215.48,0.18384363]
[1693516464748,0.07461461,215.84,215.49,0.18384363]
[1693516464950,0.07461461,215.84,215.48,0.18384363]
[1693516465154,0.07461461,215.84,215.49,0.18384363]
[1693516465355,0.07461461,215.84,215.48,0.18384363]
[1693516465555,0.07461461,215.84,215.49,0.18384363]
[1693516465856,0.07461461,215.84,215.5,0.18384363]
[1693516466155,0.07461461,215.84,215.51,0.18384363]
[1693516466351,0.07461461,215.84,215.52,0.18384363]
[1693516466556,0.07461461,215.84,215.47,0.07566312]
[1693516466557,0.07461461,215.84,215.48,0.18384363]
[1693516466756,0.07461461,215.83,215.49,0.18384363]
[1693516466957,0.07461461,215.83,215.47,0.18384363]
[1693516467160,0.07461461,215.82,215.48,0.18384363]
[1693516467355,0.07461461,215.83,215.47,0.18384363]
[1693516467555,0.07461461,215.83,215.48,0.18384363]
[1693516467753,0.07461461,215.83,215.47,0.18384363]
[1693516471159,0.07461461,215.84,215.48,0.18384363]
[1693516471353,0.07461461,215.84,215.46,0.18384363]
[1693516471753,0.07461461,215.84,215.46,0.25950675]
[1693516471960,0.07461461,215.84,215.47,0.18384363]
[1693516472153,0.07461461,215.84,215.48,0.18384363]
[1693516472354,0.07461461,215.84,215.49,0.18384363]
[1693516472556,0.07461461,215.84,215.5,0.18384363]
[1693516472754,0.07461461,215.84,215.51,0.18384363]
[1693516472961,0.07461461,215.84,215.52,0.18384363]
[1693516473157,0.07461461,215.84,215.53,0.18384363]
[1693516473358,0.07461461,215.84,215.45,0.07566312]
[1693516473359,0.07461461,215.84,215.46,0.18384363]
[1693516473555,0.07461461,215.84,215.47,0.18384363]
[1693516473756,0.07461461,215.84,215.45,0.07566312]
[1693516473757,0.07461461,215.84,215.46,0.18384363]
[1693516473958,0.07461461,215.84,215.47,0.18384363]
[1693516474161,0.07461461,215.84,215.46,0.18384363]
[1693516474357,0.07461461,215.79,215.47,0.18384363]
[1693516474556,0.07461461,215.78,215.48,0.18384363]
[1693516474857,0.07461461,215.76,215.38,0.07566312]
[1693516475160,0.07461461,215.78,215.39,0.18350907]
[1693516475363,0.07461461,215.78,215.36,0.18350907]
[1693516475559,0.07461461,215.77,215.37,0.18350907]
[1693516475759,0.07461461,215.77,215.35,0.18350907]
[1693516475959,0.07461461,215.77,215.36,0.18350907]
[1693516476160,0.07461461,215.77,215.35,0.18350907]
[1693516476864,0.07461461,215.78,215.35,0.18350907]
[1693516477061,0.07461461,215.78,215.33,0.18350907]
[1693516477260,0.07461461,215.78,215.32,0.07566312]
[1693516477261,0.07461461,215.78,215.34,0.18350907]
[1693516477464,0.07461461,215.78,215.33,0.18350907]
[1693516477664,0.07461461,215.78,215.34,0.18350907]
[1693516477965,0.07461461,215.79,215.35,0.18350907]
[1693516478165,0.85226353,215.78,215.31,0.18350907]
[1693516478465,0.85226353,215.78,215.32,0.18350907]
[1693516478660,0.85226353,215.78,215.31,0.18350907]
[1693516478661,0.92687814,215.78,215.31,0.18350907]
[1693516478867,0.85226353,215.77,215.32,0.18350907]
[1693516479069,0.85226353,215.77,215.3,0.18350907]
[1693516479263,0.85226353,215.79,215.31,0.18350907]
[1693516479463,0.85226353,215.79,215.29,0.25917219]
[1693516479766,0.85226353,215.79,215.3,0.18350907]
[1693516481065,0.85226353,215.8,215.29,0.18350907]
[1693516481266,0.85226353,215.79,215.3,0.18350907]
[1693516481466,0.85226353,215.78,215.31,0.18350907]
[1693516481668,0.07461461,215.81,215.29,0.18350907]
[1693516481669,0.85226353,215.8,215.29,0.18350907]
[1693516481869,0.85228412,215.79,215.3,0.18350907]
[1693516482169,0.85228412,215.79,215.21,0.15132625]
[1693516482170,0.85228412,215.79,215.31,0.18350907]
[1693516482362,0.85228412,215.8,215.28,0.18350907]
[1693516482565,0.85228412,215.79,215.29,0.18350907]
[1693516482762,0.85228412,215.8,215.28,0.18350907]
[1693516483567,0.85228412,215.8,215.28,0.25917219]
[1693516483760,0.85228412,215.8,215.29,0.18350907]
[1693516483964,0.85228412,215.8,215.27,0.07566312]
[1693516483965,0.85228412,215.8,215.28,0.18350907]
[1693516484167,0.85228412,215.8,215.29,0.18350907]
[1693516484369,0.85228412,215.81,215.28,0.18350907]
[1693516484571,0.85228412,215.8,215.29,0.18350907]
[1693516484767,0.85228412,215.79,215.3,0.18350907]
[1693516485072,0.85228412,215.78,215.31,0.18350907]
[1693516485268,0.92689873,215.81,215.29,0.18350907]
[1693516485466,0.85228412,215.8,215.28,0.18350907]
[1693516485669,0.85228412,215.8,215.29,0.18350907]
[1693516485869,0.85228412,215.8,215.3,0.18350907]
[1693516486070,0.92689873,215.8,215.28,0.18350907]
[1693516486267,0.85228412,215.79,215.29,0.18350907]
[1693516486467,0.85228412,215.79,215.3,0.18350907]
[1693516486667,0.85228412,215.79,215.28,0.18350907]
[1693516486867,0.85228412,215.79,215.29,0.18350907]
[1693516487066,0.85228412,215.79,215.3,0.18350907]
[1693516487267,0.07461461,215.75,215.27,0.18350907]
[1693516487471,0.92689873,215.74,215.28,0.18350907]
[1693516487672,0.85228412,215.73,215.22,0.18350907]
[1693516487874,0.85228412,215.73,215.23,0.18350907]
[1693516488173,0.85228412,215.73,215.24,0.18350907]
[1693516488373,0.85228412,215.73,215.2,0.18350907]
[1693516488374,0.92689873,215.73,215.2,0.18350907]
[1693516488568,0.85228412,215.72,215.21,0.18350907]
[1693516488874,0.85228412,215.72,215.22,0.18350907]
[1693516489071,0.85228412,215.72,215.19,0.25917219]
[1693516489270,0.85228412,215.72,215.23,0.18350907]
[1693516489473,0.92689873,215.73,215.24,0.18350907]
[1693516489671,0.85228412,215.72,215.19,0.18350907]
[1693516489875,0.85228412,215.72,215.2,0.18350907]
[1693516490173,0.85228412,215.71,215.21,0.18350907]
[1693516490373,0.85228412,215.7,215.22,0.18350907]
[1693516490574,0.85228412,215.73,215.18,0.18350907]
[1693516490770,0.85228412,215.72,215.19,0.18350907]
[1693516490969,0.85228412,215.72,215.17,0.07566312]
[1693516490970,0.85228412,215.74,215.18,0.18350907]
[1693516493473,0.92689873,215.74,215.18,0.18350907]
[1693516493673,0.85228412,215.73,215.18,0.18350907]
[1693516493873,0.85228412,215.74,215.18,0.18350907]
[1693516494074,0.85228412,215.73,215.18,0.18350907]
[1693516494276,0.85228412,215.74,215.18,0.18350907]
[1693516494977,0.92689873,215.75,215.18,0.18350907]
[1693516495180,0.85228412,215.74,215.18,0.18350907]
[1693516495379,0.85228412,215.73,215.18,0.18350907]
[1693516495579,0.85228412,215.75,215.18,0.18350907]
[1693516495781,0.85228412,215.74,215.18,0.18350907]
[1693516495977,0.85228412,215.75,215.18,0.18350907]
[1693516496181,0.85228412,215.74,215.18,0.18350907]
[1693516496381,0.85228412,215.73,215.18,0.18350907]
[1693516496582,0.85228412,215.75,215.18,0.18350907]
[1693516496881,0.85228412,215.74,215.18,0.18350907]
[1693516497079,0.85228412,215.75,215.18,0.25917219]
[1693516497278,0.85228412,215.75,215.19,0.18350907]
[1693516497682,0.92689873,215.76,215.19,0.18350907]
[1693516497885,0.85228412,215.75,215.19,0.18350907]
[1693516498584,0.92689873,215.75,215.19,0.18350907]
[1693516498885,0.85228412,215.74,215.19,0.25917219]
[1693516499179,0.85228412,215.73,215.2,0.18350907]
[1693516499384,0.92689873,215.76,215.2,0.18350907]
[1693516499583,0.85228412,215.75,215.2,0.18350907]
[1693516499884,0.85228412,215.75,215.2,0.25917219]
[1693516500085,0.85228412,215.75,215.21,0.18350907]
[1693516500583,0.85228412,215.76,215.21,0.25917219]
[1693516500883,0.07461461,215.77,215.22,0.25917219]
[1693516500884,0.85228412,215.75,215.22,0.25917219]
[1693516501187,0.85228412,215.74,215.23,0.18350907]
[1693516501384,0.85228412,215.76,215.23,0.18350907]
[1693516501580,0.85228412,215.75,215.23,0.18350907]
[1693516501784,0.85228412,215.76,215.23,0.18350907]
[1693516502386,0.92689873,215.76,215.23,0.18350907]
[1693516502581,0.85228412,215.75,215.23,0.18350907]
[1693516502781,0.92689873,215.75,215.23,0.18350907]
[1693516502983,0.85228412,215.74,215.23,0.18350907]
[1693516503377,0.92689873,215.74,215.23,0.18350907]
[1693516503579,0.07461461,215.72,215.22,0.18350907]
[1693516503783,0.07461461,215.72,215.2,0.07566312]
[1693516503784,0.92689873,215.71,215.23,0.18350907]
[1693516504097,0.85228412,215.7,215.24,0.18350907]
[1693516504383,0.85228412,215.7,215.2,0.07566312]
[1693516504384,0.85228412,215.7,215.25,0.18350907]
[1693516504589,0.92689873,215.7,215.21,0.18350907]
[1693516504780,0.85228412,215.69,215.22,0.18350907]
[1693516504984,0.07461461,215.71,215.21,0.18350907]
[1693516504985,0.85228412,215.7,215.21,0.18350907]
[1693516505185,0.85228412,215.69,215.22,0.18350907]
[1693516505489,0.85228412,215.68,215.23,0.18350907]
[1693516505691,0.07461461,215.7,215.24,0.18350907]
[1693516505890,0.85262222,215.69,215.2,0.25917219]
[1693516506091,0.92723683,215.69,215.21,0.18350907]
[1693516506282,0.85262222,215.68,215.21,0.18350907]
[1693516506590,0.92723683,215.68,215.21,0.18350907]
[1693516506790,0.85262222,215.67,215.22,0.18350907]
[1693516506984,0.07461461,215.66,215.21,0.07566312]
[1693516507189,0.07461461,215.66,215.22,0.18350907]
[1693516507789,0.07461461,215.67,215.22,0.18350907]
[1693516508089,0.07461461,215.65,215.24,0.07566312]
[1693516508284,0.07461461,215.65,215.25,0.18350907]
[1693516508490,0.07461461,215.66,215.24,0.25917219]
[1693516508683,0.07461461,215.66,215.25,0.25917219]
[1693516508881,0.07461461,215.66,215.26,0.18350907]
[1693516509594,0.07462942,215.66,215.26,0.18350907]
[1693516510089,0.07462942,215.66,215.26,0.25920834]
[1693516510284,0.07462942,215.66,215.27,0.18350907]
[1693516510690,0.07462942,215.66,215.26,0.18350907]
[1693516510889,0.07462942,215.66,215.27,0.18350907]
[1693516511085,0.07462942,215.65,215.26,0.18350907]
[1693516511293,0.07462942,215.64,215.27,0.18350907]
[1693516511489,0.07462942,215.64,215.25,0.18350907]
[1693516513197,0.07462942,215.58,215.25,0.18350907]
[1693516513389,0.07462942,215.57,215.25,0.18350907]
[1693516513589,0.07462942,215.65,215.26,0.18350907]
[1693516513787,0.07462942,215.7,215.3,0.07569927]
[1693516513986,0.14925884,215.72,215.33,0.07569927]
[1693516513987,0.07462942,215.72,215.33,0.07569927]
[1693516514190,0.07462942,215.73,215.34,0.25920834]
[1693516514487,0.07462942,215.78,215.36,0.07569927]
[1693516514690,0.07462942,215.75,215.36,0.07569927]
[1693516514891,0.07462942,215.76,215.36,0.07569927]
[1693516515092,0.07462942,215.76,215.37,0.18350907]
[1693516515293,0.07462942,215.77,215.37,0.18350907]
[1693516515692,0.07462942,215.76,215.37,0.18350907]
[1693516516289,0.07462942,215.75,215.37,0.18350907]
[1693516516894,0.07462942,215.75,215.35,0.18350907]
[1693516517089,0.07462942,215.74,215.36,0.18350907]
[1693516517294,0.07462942,215.74,215.37,0.18350907]
[1693516517593,0.07462942,215.74,215.38,0.18350907]
[1693516517795,0.07462942,215.74,215.35,0.18350907]
[1693516517993,0.07462942,215.74,215.36,0.18350907]
[1693516518193,0.07462942,215.74,215.33,0.07569927]
[1693516518194,0.07462942,215.74,215.34,0.18350907]
[1693516518395,0.07462942,215.74,215.35,0.18350907]
[1693516518692,0.07462942,215.74,215.36,0.18350907]
[1693516519087,0.07462942,215.74,215.27,0.15139855]
[1693516519088,0.07462942,215.74,215.37,0.18350907]
[1693516519291,0.07462942,215.74,215.35,0.18350907]
[1693516519490,0.07462942,215.74,215.36,0.18350907]
[1693516519686,0.07462942,215.74,215.34,0.18350907]
[1693516519891,0.07462942,215.73,215.35,0.18350907]
[1693516520687,0.07462942,215.74,215.35,0.18350907]
[1693516520991,0.07462942,215.74,215.36,0.18350907]
[1693516521189,0.07462942,215.74,215.37,0.18350907]
[1693516521388,0.07462942,215.74,215.35,0.18350907]
[1693516521587,0.07462942,215.74,215.36,0.18350907]
[1693516521788,0.07462942,215.74,215.35,0.25920834]
[1693516521985,0.07462942,215.74,215.36,0.18350907]
[1693516522191,0.07462942,215.74,215.35,0.18350907]
[1693516522592,0.07462942,215.75,215.35,0.18350907]
[1693516524996,0.07462942,215.75,215.36,0.18350907]
[1693516525197,0.07462942,215.76,215.34,0.18350907]
[1693516525398,0.07462942,215.76,215.35,0.18350907]
[1693516525698,0.07462942,215.76,215.36,0.18350907]
[1693516525892,0.07462942,215.76,215.35,0.18350907]
[1693516526100,0.07462942,215.76,215.36,0.18350907]
[1693516526297,0.07462942,215.76,215.34,0.25920834]
[1693516526498,0.07462942,215.76,215.35,0.18350907]
[1693516526794,0.07462942,215.77,215.35,0.18350907]
[1693516526995,0.07462942,215.77,215.33,0.07569927]
[1693516526996,0.07462942,215.77,215.34,0.18350907]
[1693516527190,0.07462942,215.77,215.35,0.18350907]
[1693516527399,0.07462942,215.77,215.34,0.18350907]
[1693516527594,0.07462942,215.71,215.35,0.18350907]
[1693516527791,0.07462942,215.7,215.36,0.18350907]
[1693516527991,0.07462942,215.7,215.28,0.18350907]
[1693516528294,0.07462942,215.7,215.29,0.18350907]
[1693516528493,0.07462942,215.7,215.28,0.18350907]
[1693516528793,0.07462942,215.7,215.29,0.18350907]
[1693516528998,0.07462942,215.7,215.3,0.18350907]
[1693516529199,0.07462942,215.7,215.31,0.18350907]
[1693516529399,0.07462942,215.7,215.32,0.18350907]
[1693516529600,0.07462942,215.7,215.27,0.07569927]
[1693516529601,0.07462942,215.7,215.33,0.18350907]
[1693516529798,0.07462942,215.7,215.34,0.18350907]
[1693516529997,0.07462942,215.7,215.28,0.18350907]
[1693516530194,0.07462942,215.7,215.29,0.18350907]
[1693516530393,0.07462942,215.7,215.28,0.18350907]
[1693516530598,0.07462942,215.7,215.29,0.18350907]
[1693516530793,0.07462942,215.7,215.28,0.18350907]
[1693516530998,0.07462942,215.7,215.29,0.18350907]
[1693516531194,0.07462942,215.7,215.28,0.18350907]
[1693516531600,0.07462942,215.71,215.28,0.25920834]
[1693516531896,0.07462942,215.71,215.29,0.25920834]
[1693516532102,0.07462942,215.71,215.3,0.18350907]
[1693516533097,0.07462942,215.72,215.3,0.18350907]
[1693516533802,0.07462942,215.72,215.3,0.25920834]
[1693516534003,0.07462942,215.72,215.31,0.18350907]
[1693516536199,0.07462942,215.74,215.32,0.07569927]
[1693516536403,0.07462942,215.78,215.36,0.07569927]
[1693516536599,0.07462942,215.78,215.37,0.18350907]
[1693516537199,0.07462942,215.78,215.36,0.18350907]
[1693516537397,0.07462942,215.78,215.37,0.18350907]
[1693516537604,0.07462942,215.78,215.36,0.18350907]
[1693516537798,0.07462942,215.78,215.37,0.18350907]
[1693516538002,0.07462942,215.77,215.36,0.18350907]
[1693516538305,0.07462942,215.78,215.37,0.18350907]
[1693516538506,0.07462942,215.78,215.36,0.18350907]
[1693516538806,0.07462942,215.78,215.37,0.18350907]
[1693516539005,0.07462942,215.79,215.36,0.18350907]
[1693516539206,0.07462942,215.79,215.37,0.18350907]
[1693516540004,0.49752949,215.84,215.37,0.18350907]
[1693516540005,0.07462942,215.84,215.41,0.07569927]
[1693516540202,0.07462942,215.85,215.42,0.25920834]
[1693516540505,0.07462942,215.87,215.44,0.07569927]
[1693516540705,0.07462942,215.88,215.45,0.18350907]
[1693516540906,0.07462942,215.88,215.45,0.25920834]
[1693516541101,2.48764745,216.01,214.97,3.53263306]
[1693516541102,0.07462942,215.95,215.46,0.25920834]
[1693516541305,0.85164335,215.94,215.47,0.25920834]
[1693516541505,0.85164335,215.94,215.48,0.18350907]
[1693516543111,0.07462942,215.98,215.49,0.18350907]
[1693516543312,0.85162713,215.97,215.45,0.18350907]
[1693516543509,0.92625655,215.97,215.46,0.18350907]
[1693516543709,0.85162713,215.96,215.45,0.18350907]
[1693516544111,0.85162713,215.98,215.43,0.18350907]
[1693516544310,0.85162713,215.97,215.44,0.18350907]
[1693516544613,0.85162713,215.96,215.44,0.18350907]
[1693516544913,0.85162713,215.95,215.44,0.18350907]
[1693516545106,0.85162713,216.0,215.44,0.25920834]
[1693516545310,0.85156886,215.99,215.45,0.18350907]
[1693516545504,0.85156886,216.0,215.45,0.18350907]
[1693516545810,0.85156886,215.99,215.45,0.18350907]
[1693516546011,0.07462942,216.04,215.46,0.18350907]
[1693516546012,0.85156886,215.98,215.46,0.18350907]
[1693516546306,0.07462942,216.09,215.48,0.07569927]
[1693516546509,0.85129197,216.08,215.49,0.18350907]
[1693516546712,0.85129197,216.08,215.48,0.18350907]
[1693516547012,0.85129197,216.08,215.49,0.18350907]
[1693516547211,0.92592139,216.12,215.46,0.18350907]
[1693516547412,0.85129197,216.11,215.47,0.18350907]
[1693516547611,0.85129197,216.11,215.46,0.18350907]
[1693516547811,0.85129197,216.11,215.47,0.25920834]
[1693516548006,0.85129197,216.12,215.48,0.18350907]
[1693516548215,0.85129197,216.11,215.48,0.18350907]
[1693516548407,0.85129197,216.11,215.49,0.18350907]
[1693516548608,0.85129197,216.11,215.47,0.18350907]
[1693516548809,0.85129197,216.11,215.48,0.18350907]
[1693516549009,0.85129197,216.14,215.45,0.18350907]
[1693516549211,0.85129197,216.13,215.46,0.18350907]
[1693516549511,0.85129197,216.12,215.47,0.18350907]
[1693516549712,0.85129197,216.14,215.45,0.18350907]
[1693516550011,0.85129197,216.14,215.35,0.15139855]
[1693516550012,0.85129197,216.13,215.46,0.18350907]
[1693516550213,0.85129197,216.16,215.42,0.18350907]
[1693516550411,0.14925884,216.2,215.43,0.18350907]
[1693516550412,0.85129197,216.15,215.43,0.18350907]
[1693516550611,0.85129197,216.17,215.42,0.18350907]
[1693516550806,0.85129197,216.16,215.43,0.18350907]
[1693516551006,0.85129197,216.15,215.44,0.18350907]
[1693516551211,0.85129197,216.14,215.45,0.18350907]
[1693516551407,0.92592139,216.17,215.46,0.18350907]
[1693516551714,0.85129197,216.16,215.47,0.18350907]
[1693516552007,0.85129197,216.16,215.18,1.00932373]
[1693516552008,0.85129197,216.16,215.48,0.18350907]
[1693516552208,0.99505898,216.26,215.38,0.07569927]
[1693516552209,0.85129197,216.15,215.49,0.18350907]
[1693516552416,0.85129197,216.17,215.39,0.18350907]
[1693516552713,0.85129197,216.16,215.4,0.18350907]
[1693516553012,0.85129197,216.15,215.41,0.18350907]
[1693516553213,0.85129197,216.17,215.39,0.18350907]
[1693516553408,0.85129197,216.16,215.37,0.25920834]
[1693516553613,0.85129197,216.18,215.38,0.18350907]
[1693516553815,0.07462942,216.19,215.22,0.50466186]
[1693516553816,0.85129197,216.17,215.37,0.25920834]
[1693516554014,0.07462942,216.2,215.37,0.25920834]
[1693516554015,0.85129197,216.16,215.38,0.18350907]
[1693516554210,0.85129197,216.15,215.38,0.25920834]
[1693516554416,0.85129197,216.2,215.39,0.18350907]
[1693516554715,0.85129197,216.19,215.39,0.18350907]
[1693516554917,0.85129197,216.2,215.38,0.18350907]
[1693516555116,0.85129197,216.18,215.39,0.18350907]
[1693516555410,0.85129197,216.17,215.4,0.18350907]
[1693516555608,0.85129197,216.21,215.41,0.18350907]
[1693516555814,0.85129197,216.2,215.38,0.18350907]
[1693516556016,0.85129197,216.22,215.39,0.18350907]
[1693516556214,0.85129197,216.21,215.38,0.18350907]
[1693516556417,0.85129197,216.21,215.39,0.18350907]
[1693516556616,0.85129197,216.21,215.38,0.18350907]
[1693516556817,0.85129197,216.21,215.39,0.18350907]
[1693516557117,0.85129197,216.2,215.4,0.18350907]
[1693516557417,0.85129197,216.19,215.41,0.18350907]
[1693516557616,0.85129197,216.22,215.37,0.18350907]
[1693516557815,0.85129197,216.22,215.38,0.18350907]
[1693516557816,0.85129197,216.18,215.38,0.18350907]
[1693516558016,0.85129197,216.17,215.35,0.18350907]
[1693516558315,0.85129197,216.16,215.35,0.18350907]
[1693516558517,0.07462942,216.19,215.35,0.18350907]
[1693516558717,0.07462942,216.17,215.32,0.18350907]
[1693516558917,0.85129197,216.16,215.33,0.18350907]
[1693516559218,0.85129197,216.16,215.34,0.18350907]
[1693516559515,0.85129197,216.16,215.35,0.18350907]
[1693516559713,0.85129197,216.16,215.3,0.18350907]
[1693516559918,0.85129197,216.16,215.31,0.18350907]
[1693516560119,0.92592139,216.16,215.3,0.18350907]
[1693516560321,0.85129197,216.15,215.31,0.18350907]
[1693516560615,0.85129197,216.15,215.32,0.18350907]
[1693516560814,0.85129197,216.14,215.33,0.18350907]
[1693516561015,0.85129197,216.16,215.3,0.18350907]
[1693516561212,0.85129197,216.15,215.31,0.18350907]
[1693516561412,0.92592139,216.16,215.3,0.18350907]
[1693516561613,0.85129197,216.15,215.31,0.18350907]
[1693516561812,0.85129197,216.14,215.32,0.18350907]
[1693516562015,0.85129197,216.16,215.3,0.18350907]
[1693516562219,0.85129197,216.15,215.31,0.18350907]
[1693516562419,0.85129197,216.15,215.29,0.18350907]
[1693516562720,0.85129197,216.15,215.3,0.18350907]
[1693516563421,0.85129197,216.15,215.3,0.25920834]
[1693516563720,0.85129197,216.15,215.31,0.25920834]
[1693516564021,0.85129197,216.14,215.32,0.18350907]
[1693516564219,0.85129197,216.15,215.32,0.18350907]
[1693516564419,0.85129197,216.14,215.32,0.18350907]
[1693516564620,0.85129197,216.15,215.31,0.18350907]
[1693516564920,0.85129197,216.14,215.32,0.25920834]
[1693516565114,0.85129197,216.14,215.33,0.25920834]
[1693516565519,0.85129197,216.14,215.34,0.18350907]
[1693516565716,0.92592139,216.14,215.34,0.18350907]
[1693516565919,0.07462942,216.12,215.35,0.18350907]
[1693516566116,0.07462942,216.12,215.34,0.25920834]
[1693516566117,0.85129197,216.11,215.34,0.25920834]
[1693516566421,0.85129197,216.11,215.35,0.18350907]
[1693516566622,0.85129197,216.12,215.35,0.18350907]
[1693516566823,0.07462942,216.13,215.35,0.18350907]
[1693516566824,0.85129197,216.1,215.36,0.07569927]
[1693516567021,0.85129197,216.09,215.37,0.18350907]
[1693516567221,0.92592139,216.1,215.37,0.18350907]
[1693516567525,0.85129197,216.09,215.37,0.18350907]
[1693516568229,0.92592139,216.09,215.37,0.18350907]
[1693516568523,0.85129197,216.08,215.38,0.18350907]
[1693516568724,0.85129197,216.08,215.39,0.18350907]
[1693516568725,0.07462942,216.06,215.39,0.18350907]
[1693516568921,0.85129197,216.05,215.4,0.18350907]
[1693516569122,0.85129197,216.05,215.41,0.18350907]
[1693516569318,0.85129197,216.05,215.39,0.18350907]
[1693516569523,0.85129197,216.05,215.4,0.18350907]
[1693516569718,0.85129197,216.05,215.38,0.18350907]
[1693516569923,0.85129197,216.05,215.39,0.18350907]
[1693516570223,0.85129197,216.05,215.4,0.18350907]
[1693516570424,0.92592139,216.05,215.41,0.18350907]
[1693516570619,0.92592139,216.04,215.38,0.18350907]
[1693516570920,0.07462942,216.0,215.39,0.25920834]
[1693516571124,0.85129197,215.99,215.4,0.18350907]
[1693516571825,0.07462942,215.98,215.42,0.07569927]
[1693516572025,0.07462942,215.98,215.19,1.00932373]
[1693516572026,0.85129197,215.97,215.43,0.25920834]
[1693516572225,0.85129197,215.96,215.44,0.18350907]
[1693516572425,0.85129197,215.95,215.44,0.18350907]
[1693516572724,0.85129197,215.94,215.44,0.18350907]
[1693516572926,0.85129197,215.98,215.44,0.18350907]
[1693516573125,0.85160244,215.97,215.44,0.18350907]
[1693516573326,0.85160244,215.98,215.44,0.18350907]
[1693516573533,0.85160244,215.97,215.44,0.18350907]
[1693516573831,0.85160244,215.97,215.45,0.07569927]
[1693516573832,0.07462942,215.95,215.45,0.07569927]
[1693516574126,0.85160244,215.94,215.46,0.18350907]
[1693516574928,0.85160244,215.94,215.49,0.07569927]
[1693516574929,0.07462942,215.91,215.49,0.07569927]
[1693516575228,0.07462942,215.91,215.5,0.18350907]
[1693516575926,0.07462942,215.9,215.5,0.25920834]
[1693516576122,0.07462942,215.9,215.51,0.18350907]
[1693516576628,0.07462942,215.85,215.51,0.18350907]
[1693516576822,0.07462942,215.84,215.46,0.18350907]
[1693516577024,0.07462942,215.86,215.47,0.18350907]
[1693516577322,0.07462942,215.85,215.48,0.18350907]
[1693516577626,0.07462942,215.85,215.49,0.18350907]
[1693516577929,0.07462942,215.85,215.5,0.18350907]
[1693516578127,0.07462942,215.87,215.51,0.18350907]
[1693516578330,0.07462942,215.86,215.52,0.18350907]
[1693516578530,0.07462942,215.86,215.43,0.18350907]
[1693516578731,0.07462942,215.86,215.44,0.18350907]
[1693516578933,0.07462942,215.86,215.43,0.18350907]
[1693516579131,0.07462942,215.87,215.44,0.18350907]
[1693516579331,0.99505898,215.95,215.36,0.15139855]
[1693516579332,0.07462942,215.88,215.43,0.25920834]
[1693516579526,0.07462942,215.88,215.44,0.18350907]
[1693516579725,0.07462942,215.87,215.43,0.18350907]
[1693516579932,0.07462942,215.88,215.44,0.18350907]
[1693516580127,0.07462942,215.88,215.42,0.18350907]
[1693516580326,0.07462942,215.88,215.43,0.18350907]
[1693516580631,0.85186309,215.87,215.44,0.18350907]
[1693516580830,0.85186309,215.87,215.42,0.18350907]
[1693516581130,0.85186309,215.87,215.43,0.18350907]
[1693516581330,0.85186309,215.87,215.4,0.25920834]
[1693516581532,0.85186309,215.87,215.41,0.18350907]
[1693516581927,0.85186309,215.87,215.4,0.18350907]
[1693516582231,0.85186309,215.87,215.4,0.25920834]
[1693516582433,0.85186309,215.87,215.41,0.18350907]
[1693516582730,0.99505898,215.96,215.41,0.18350907]
[1693516582731,0.07462942,215.89,215.42,0.18350907]
[1693516582930,0.85183466,215.88,215.42,0.18350907]
[1693516583132,0.14925884,215.92,215.42,0.18350907]
[1693516583133,0.07462942,215.91,215.42,0.18350907]
[1693516583332,0.85181006,215.9,215.42,0.25920834]
[1693516583634,0.85181006,215.9,215.43,0.18350907]
[1693516583829,0.92643948,215.9,215.42,0.25920834]
[1693516584034,0.85181006,215.89,215.43,0.18350907]
[1693516584634,0.85181006,215.89,215.42,0.18350907]
[1693516584831,0.92643948,215.89,215.43,0.18350907]
[1693516585028,0.07462942,215.9,215.43,0.18350907]
[1693516585433,0.85179856,215.89,215.43,0.18350907]
[1693516586948,0.92642798,215.89,215.43,0.25920834]
[1693516587243,0.07462942,215.89,215.44,0.18350907]
[1693516588043,0.07462942,215.88,215.45,0.18350907]
[1693516588244,0.07462942,215.88,215.44,0.18350907]
[1693516588542,0.07462942,215.88,215.45,0.18350907]
[1693516588744,0.07462942,215.88,215.44,0.18350907]
[1693516589945,0.07462942,215.87,215.44,0.25920834]
[1693516590137,0.07462942,215.87,215.45,0.18350907]
[1693516590341,0.07462942,215.88,215.45,0.18350907]
[1693516590945,0.07462942,216.0,215.57,0.07569927]
[1693516591144,0.07462942,215.99,215.58,0.18350907]
[1693516591340,0.07462942,215.99,215.54,0.18350907]
[1693516591541,0.9260134,215.98,215.54,0.18350907]
[1693516591741,0.07462942,215.98,215.53,0.18350907]
[1693516591945,0.07462942,215.97,215.54,0.18350907]
[1693516592145,0.07462942,215.96,215.54,0.18350907]
[1693516593647,0.07462942,215.95,215.54,0.18350907]
[1693516593945,0.07462942,215.95,215.55,0.18350907]
[1693516594146,0.07462942,215.95,215.53,0.18350907]
[1693516594344,0.07462942,215.95,215.54,0.18350907]
[1693516594538,0.07462942,215.96,215.53,0.18350907]